[Event "Titled Tuesday Blitz July 26 Early 2022"]
[White "Melikyan, Gnel"]
[Black "Garrido, Denis"]
[WhiteFideId "54109990"]
[BlackFideId "601217"]
[WhiteElo "1772"]
[BlackElo "2403"]
[Result "0-1"]
[Round "03"]
[TimeControl "180+1"]
[Date "2022.07.27"]
[WhiteClock "0:00:02"]
[BlackClock "0:00:38"]

1. e4 {[%clk 0:03:00]}  e5 {[%clk 0:03:00]} 2. Nf3 {[%clk 0:02:59]}  Nc6 {[%clk 0:03:00]} 3. Bc4 {[%clk 0:02:58]}  Nf6 {[%clk 0:03:00]} 4. Ng5 {[%clk 0:02:50]}  d5 {[%clk 0:03:00]} 5. exd5 {[%clk 0:02:49]}  Na5 {[%clk 0:03:00]} 6. Bb5+ {[%clk 0:02:50]}  c6 {[%clk 0:03:01]} 7. dxc6 {[%clk 0:02:48]}  bxc6 {[%clk 0:03:02]} 8. Qf3 {[%clk 0:02:44]}  cxb5 {[%clk 0:03:01]} 9. Qxa8 {[%clk 0:02:43]}  Qc7 {[%clk 0:03:02]} 10. Nc3 {[%clk 0:02:26]}  Be7 {[%clk 0:03:01]} 11. b4 {[%clk 0:02:20]}  Nc6 {[%clk 0:02:56]} 12. Nxb5 {[%clk 0:02:08]}  Qd7 {[%clk 0:02:56]} 13. Nc3 {[%clk 0:01:22]}  O-O {[%clk 0:02:53]} 14. O-O {[%clk 0:01:19]}  Bb7 {[%clk 0:02:50]} 15. Qxf8+ {[%clk 0:01:17]}  Bxf8 {[%clk 0:02:51]} 16. a3 {[%clk 0:01:17]}  Qg4 {[%clk 0:02:46]} 17. Nge4 {[%clk 0:01:04]}  Nxe4 {[%clk 0:02:42]} 18. f3 {[%clk 0:01:04]}  Qg6 {[%clk 0:02:33]} 19. Nxe4 {[%clk 0:00:58]}  Nd4 {[%clk 0:02:30]} 20. d3 {[%clk 0:00:55]}  Nxc2 {[%clk 0:02:27]} 21. Ra2 {[%clk 0:00:54]}  Nd4 {[%clk 0:02:27]} 22. Be3 {[%clk 0:00:54]}  Bd5 {[%clk 0:02:23]} 23. Rd2 {[%clk 0:00:48]}  Qb6 {[%clk 0:02:04]} 24. Kf2 {[%clk 0:00:40]}  f5 {[%clk 0:02:02]} 25. Nc3 {[%clk 0:00:37]}  Bb7 {[%clk 0:01:41]} 26. Ne2 {[%clk 0:00:35]}  a5 {[%clk 0:01:38]} 27. Rc1 {[%clk 0:00:20]}  axb4 {[%clk 0:01:32]} 28. axb4 {[%clk 0:00:21]}  Bxb4 {[%clk 0:01:30]} 29. Ra2 {[%clk 0:00:18]}  Bc5 {[%clk 0:01:27]} 30. f4 {[%clk 0:00:08]}  exf4 {[%clk 0:01:14]} 31. Nxf4 {[%clk 0:00:08]}  Nb3 {[%clk 0:01:13]} 32. Rxc5 {[%clk 0:00:07]}  Nxc5 {[%clk 0:01:14]} 33. Rc2 {[%clk 0:00:06]}  Nxd3+ {[%clk 0:01:07]} 34. Nxd3 {[%clk 0:00:06]}  Qb3 {[%clk 0:01:08]} 35. Rd2 {[%clk 0:00:05]}  h6 {[%clk 0:00:56]} 36. Ne5 {[%clk 0:00:05]}  Qe6 {[%clk 0:00:53]} 37. Bd4 {[%clk 0:00:04]}  Qd5 {[%clk 0:00:52]} 38. Nf3 {[%clk 0:00:03]}  g5 {[%clk 0:00:47]} 39. Be3 {[%clk 0:00:03]}  Qc6 {[%clk 0:00:45]} 40. Ne1 {[%clk 0:00:01]}  f4 {[%clk 0:00:44]} 41. Bd4 {[%clk 0:00:02]}  g4 {[%clk 0:00:42]} 42. h3 {[%clk 0:00:02]}  g3+ {[%clk 0:00:40]} 43. Kg1 {[%clk 0:00:02]}  Qc1 {[%clk 0:00:38]} 0-1


[Site "https://www.chess.com"]

[Event "Titled Tuesday Blitz July 26 Early 2022"]
[White "Mindlin, Alon"]
[Black "Suleymanli, Aydin"]
[WhiteFideId "2800071"]
[BlackFideId "13413937"]
[WhiteElo "2390"]
[BlackElo "2481"]
[Result "0-1"]
[Round "03"]
[TimeControl "180+1"]
[Date "2022.07.26"]
[WhiteClock "0:00:09"]
[BlackClock "0:00:15"]

1. d4 {[%clk 0:03:00]}  Nf6 {[%clk 0:02:55]} 2. c4 {[%clk 0:03:00]}  e6 {[%clk 0:02:55]} 3. Nf3 {[%clk 0:03:00]}  d5 {[%clk 0:02:55]} 4. Nc3 {[%clk 0:02:59]}  dxc4 {[%clk 0:02:56]} 5. e3 {[%clk 0:02:59]}  a6 {[%clk 0:02:55]} 6. Bxc4 {[%clk 0:02:56]}  b5 {[%clk 0:02:56]} 7. Bd3 {[%clk 0:02:56]}  Bb7 {[%clk 0:02:55]} 8. O-O {[%clk 0:02:56]}  Nbd7 {[%clk 0:02:54]} 9. Qe2 {[%clk 0:02:56]}  c5 {[%clk 0:02:53]} 10. Rd1 {[%clk 0:02:56]}  Rc8 {[%clk 0:02:47]} 11. a4 {[%clk 0:02:48]}  c4 {[%clk 0:02:44]} 12. Bb1 {[%clk 0:02:46]}  b4 {[%clk 0:02:43]} 13. Na2 {[%clk 0:02:46]}  a5 {[%clk 0:02:43]} 14. e4 {[%clk 0:02:42]}  c3 {[%clk 0:02:35]} 15. Bg5 {[%clk 0:02:25]}  Qb6 {[%clk 0:01:58]} 16. e5 {[%clk 0:01:45]}  Nd5 {[%clk 0:01:44]} 17. Be4 {[%clk 0:01:45]}  c2 {[%clk 0:01:44]} 18. Rd3 {[%clk 0:01:32]}  Ba6 {[%clk 0:01:37]} 19. Nc1 {[%clk 0:01:19]}  h6 {[%clk 0:01:18]} 20. Bxd5 {[%clk 0:00:57]}  hxg5 {[%clk 0:01:14]} 21. Be4 {[%clk 0:00:54]}  Be7 {[%clk 0:01:12]} 22. h3 {[%clk 0:00:43]}  O-O {[%clk 0:00:55]} 23. Nxg5 {[%clk 0:00:39]}  Bxg5 {[%clk 0:00:56]} 24. Qh5 {[%clk 0:00:39]}  f5 {[%clk 0:00:48]} 25. Rg3 {[%clk 0:00:29]}  Bf4 {[%clk 0:00:32]} 26. Rg6 {[%clk 0:00:19]}  Qxd4 {[%clk 0:00:18]} 27. Bf3 {[%clk 0:00:08]}  Nxe5 {[%clk 0:00:17]} 28. Rxe6 {[%clk 0:00:08]}  Nxf3+ {[%clk 0:00:15]} 29. gxf3 {[%clk 0:00:09]}  Qd1+ {[%clk 0:00:16]} 30. Kg2 {[%clk 0:00:09]}  Qf1# {[%clk 0:00:15]} 0-1


[Site "https://www.chess.com"]

[Event "Titled Tuesday Blitz July 26 Early 2022"]
[White "Molina, Roberto Junio Brito"]
[Black "Bilan, Danila"]
[WhiteFideId "2109450"]
[BlackFideId "24161918"]
[WhiteElo "2432"]
[BlackElo "2164"]
[Result "1-0"]
[Round "03"]
[TimeControl "180+1"]
[Date "2022.07.26"]
[WhiteClock "0:00:24"]
[BlackClock "0:00:05"]

1. d4 {[%clk 0:03:00]}  d5 {[%clk 0:02:59]} 2. Nf3 {[%clk 0:03:00]}  Nf6 {[%clk 0:02:59]} 3. e3 {[%clk 0:03:01]}  c5 {[%clk 0:02:59]} 4. c3 {[%clk 0:03:00]}  Nc6 {[%clk 0:02:58]} 5. Nbd2 {[%clk 0:02:59]}  cxd4 {[%clk 0:02:58]} 6. exd4 {[%clk 0:02:59]}  Bg4 {[%clk 0:02:58]} 7. Bd3 {[%clk 0:02:58]}  e6 {[%clk 0:02:58]} 8. h3 {[%clk 0:02:58]}  Bh5 {[%clk 0:02:58]} 9. Qb3 {[%clk 0:02:58]}  Qc8 {[%clk 0:02:49]} 10. O-O {[%clk 0:02:54]}  Bd6 {[%clk 0:02:48]} 11. Re1 {[%clk 0:02:54]}  O-O {[%clk 0:02:48]} 12. a4 {[%clk 0:02:44]}  a6 {[%clk 0:02:37]} 13. Qc2 {[%clk 0:02:34]}  Bg6 {[%clk 0:02:32]} 14. Bxg6 {[%clk 0:02:32]}  hxg6 {[%clk 0:02:33]} 15. Nb3 {[%clk 0:02:25]}  b5 {[%clk 0:02:21]} 16. axb5 {[%clk 0:02:23]}  axb5 {[%clk 0:02:22]} 17. Rxa8 {[%clk 0:02:23]}  Qxa8 {[%clk 0:02:22]} 18. Qd3 {[%clk 0:02:23]}  b4 {[%clk 0:01:53]} 19. c4 {[%clk 0:02:15]}  dxc4 {[%clk 0:01:30]} 20. Qxc4 {[%clk 0:02:14]}  Nd5 {[%clk 0:01:25]} 21. Bd2 {[%clk 0:02:11]}  Na5 {[%clk 0:01:24]} 22. Nxa5 {[%clk 0:02:09]}  Qxa5 {[%clk 0:01:25]} 23. Rc1 {[%clk 0:02:04]}  Qb6 {[%clk 0:01:08]} 24. Qc6 {[%clk 0:02:02]}  Qxc6 {[%clk 0:01:04]} 25. Rxc6 {[%clk 0:02:03]}  Be7 {[%clk 0:01:04]} 26. Kf1 {[%clk 0:01:52]}  Ra8 {[%clk 0:01:02]} 27. Ke2 {[%clk 0:01:52]}  Ra2 {[%clk 0:00:45]} 28. Rc2 {[%clk 0:01:49]}  f6 {[%clk 0:00:39]} 29. Kd3 {[%clk 0:01:42]}  Kf7 {[%clk 0:00:39]} 30. Bc1 {[%clk 0:01:42]}  Ra1 {[%clk 0:00:31]} 31. g3 {[%clk 0:01:38]}  g5 {[%clk 0:00:31]} 32. Rc4 {[%clk 0:01:34]}  Bd6 {[%clk 0:00:29]} 33. Nd2 {[%clk 0:01:31]}  Ke7 {[%clk 0:00:26]} 34. Nf3 {[%clk 0:01:22]}  Ra8 {[%clk 0:00:26]} 35. h4 {[%clk 0:01:21]}  gxh4 {[%clk 0:00:24]} 36. Nxh4 {[%clk 0:01:22]}  g5 {[%clk 0:00:23]} 37. Nf3 {[%clk 0:01:20]}  Rh8 {[%clk 0:00:23]} 38. Be3 {[%clk 0:01:14]}  Rh1 {[%clk 0:00:22]} 39. Rc1 {[%clk 0:01:12]}  Rh7 {[%clk 0:00:19]} 40. Nd2 {[%clk 0:01:10]}  Kf7 {[%clk 0:00:14]} 41. Nc4 {[%clk 0:01:09]}  Be7 {[%clk 0:00:14]} 42. Ra1 {[%clk 0:01:09]}  Kg6 {[%clk 0:00:14]} 43. Ra6 {[%clk 0:01:08]}  Kf5 {[%clk 0:00:09]} 44. f3 {[%clk 0:01:04]}  g4 {[%clk 0:00:10]} 45. fxg4+ {[%clk 0:01:01]}  Kxg4 {[%clk 0:00:11]} 46. Rxe6 {[%clk 0:01:00]}  Kxg3 {[%clk 0:00:11]} 47. Ke4 {[%clk 0:00:55]}  Rh4+ {[%clk 0:00:09]} 48. Kxd5 {[%clk 0:00:54]}  Bd8 {[%clk 0:00:05]} 49. Nd6 {[%clk 0:00:51]}  Rh5+ {[%clk 0:00:04]} 50. Kc4 {[%clk 0:00:50]}  f5 {[%clk 0:00:04]} 51. Bd2 {[%clk 0:00:38]}  f4 {[%clk 0:00:02]} 52. Bxb4 {[%clk 0:00:38]}  f3 {[%clk 0:00:02]} 53. Be1+ {[%clk 0:00:34]}  Kg2 {[%clk 0:00:02]} 54. Ne4 {[%clk 0:00:31]}  Kf1 {[%clk 0:00:03]} 55. Ng3+ {[%clk 0:00:28]}  Kg2 {[%clk 0:00:03]} 56. Nxh5 {[%clk 0:00:28]}  Bg5 {[%clk 0:00:02]} 57. Rg6 {[%clk 0:00:27]}  f2 {[%clk 0:00:03]} 58. Bxf2 {[%clk 0:00:27]}  Kh1 {[%clk 0:00:04]} 59. Rxg5 {[%clk 0:00:24]}  Kh2 {[%clk 0:00:05]} 1-0


[Site "https://www.chess.com"]

[Event "Titled Tuesday Blitz July 26 Early 2022"]
[White "Munkhgal, Gombosuren"]
[Black "Melkumyan, Hrant"]
[WhiteFideId "4901266"]
[BlackFideId "13302485"]
[WhiteElo "2576"]
[BlackElo "2604"]
[Result "1-0"]
[Round "03"]
[TimeControl "180+1"]
[Date "2022.07.26"]
[WhiteClock "0:00:07"]
[BlackClock "0:00:10"]

1. d4 {[%clk 0:03:00]}  Nf6 {[%clk 0:02:59]} 2. Bf4 {[%clk 0:03:01]}  d5 {[%clk 0:02:57]} 3. e3 {[%clk 0:03:01]}  c5 {[%clk 0:02:56]} 4. dxc5 {[%clk 0:02:59]}  e6 {[%clk 0:02:55]} 5. b4 {[%clk 0:02:59]}  a5 {[%clk 0:02:54]} 6. c3 {[%clk 0:02:58]}  Nc6 {[%clk 0:02:44]} 7. Bb5 {[%clk 0:02:57]}  Bd7 {[%clk 0:02:38]} 8. Qb3 {[%clk 0:02:48]}  Ne4 {[%clk 0:02:08]} 9. Nf3 {[%clk 0:02:48]}  b6 {[%clk 0:02:00]} 10. Bxc6 {[%clk 0:02:43]}  Bxc6 {[%clk 0:02:00]} 11. Nd4 {[%clk 0:02:44]}  Qc8 {[%clk 0:01:47]} 12. f3 {[%clk 0:02:32]}  axb4 {[%clk 0:01:38]} 13. fxe4 {[%clk 0:02:26]}  Ba4 {[%clk 0:01:38]} 14. Qb2 {[%clk 0:02:23]}  bxc5 {[%clk 0:01:38]} 15. Ne2 {[%clk 0:02:18]}  dxe4 {[%clk 0:01:26]} 16. O-O {[%clk 0:02:15]}  Bb5 {[%clk 0:01:13]} 17. cxb4 {[%clk 0:02:07]}  cxb4 {[%clk 0:01:14]} 18. Rc1 {[%clk 0:02:07]}  Qa6 {[%clk 0:01:10]} 19. Nd4 {[%clk 0:02:06]}  Bd3 {[%clk 0:01:03]} 20. Rc6 {[%clk 0:01:43]}  Qa4 {[%clk 0:00:59]} 21. Nd2 {[%clk 0:01:37]}  Be7 {[%clk 0:00:58]} 22. Qb3 {[%clk 0:01:24]}  O-O {[%clk 0:00:53]} 23. Qxa4 {[%clk 0:01:17]}  Rxa4 {[%clk 0:00:54]} 24. Bd6 {[%clk 0:01:16]}  Bxd6 {[%clk 0:00:51]} 25. Rxd6 {[%clk 0:01:16]}  Rfa8 {[%clk 0:00:52]} 26. Rb6 {[%clk 0:01:10]}  h6 {[%clk 0:00:52]} 27. Rd1 {[%clk 0:01:06]}  Rxa2 {[%clk 0:00:40]} 28. Rxb4 {[%clk 0:01:04]}  g5 {[%clk 0:00:40]} 29. h3 {[%clk 0:01:03]}  Kg7 {[%clk 0:00:40]} 30. Rb7 {[%clk 0:00:53]}  Kg6 {[%clk 0:00:40]} 31. g4 {[%clk 0:00:42]}  Rc8 {[%clk 0:00:37]} 32. Kf2 {[%clk 0:00:41]}  Rc3 {[%clk 0:00:25]} 33. Rb6 {[%clk 0:00:31]}  h5 {[%clk 0:00:23]} 34. Rc6 {[%clk 0:00:31]}  Rxc6 {[%clk 0:00:14]} 35. Nxc6 {[%clk 0:00:31]}  Bc2 {[%clk 0:00:15]} 36. Nb4 {[%clk 0:00:26]}  Rb2 {[%clk 0:00:15]} 37. Nxc2 {[%clk 0:00:25]}  Rxc2 {[%clk 0:00:16]} 38. Ke2 {[%clk 0:00:25]}  f5 {[%clk 0:00:14]} 39. gxf5+ {[%clk 0:00:20]}  exf5 {[%clk 0:00:15]} 40. Rb1 {[%clk 0:00:20]}  Rc6 {[%clk 0:00:16]} 41. Rb5 {[%clk 0:00:17]}  h4 {[%clk 0:00:16]} 42. Nb3 {[%clk 0:00:16]}  Rc2+ {[%clk 0:00:16]} 43. Kf1 {[%clk 0:00:13]}  Rh2 {[%clk 0:00:16]} 44. Nd4 {[%clk 0:00:13]}  Rxh3 {[%clk 0:00:16]} 45. Rb6+ {[%clk 0:00:12]}  Kh5 {[%clk 0:00:16]} 46. Kf2 {[%clk 0:00:11]}  Kg4 {[%clk 0:00:16]} 47. Rb5 {[%clk 0:00:10]}  Rg3 {[%clk 0:00:15]} 48. Rxf5 {[%clk 0:00:07]}  h3 {[%clk 0:00:16]} 49. Rxg5+ {[%clk 0:00:07]}  Kxg5 {[%clk 0:00:06]} 50. Kxg3 {[%clk 0:00:08]}  h2 {[%clk 0:00:06]} 51. Kxh2 {[%clk 0:00:09]}  Kg4 {[%clk 0:00:07]} 52. Kg2 {[%clk 0:00:09]}  Kh4 {[%clk 0:00:07]} 53. Kf2 {[%clk 0:00:08]}  Kg4 {[%clk 0:00:08]} 54. Ne2 {[%clk 0:00:08]}  Kf5 {[%clk 0:00:08]} 55. Nc3 {[%clk 0:00:07]}  Ke5 {[%clk 0:00:09]} 56. Kg3 {[%clk 0:00:07]}  Kf5 {[%clk 0:00:10]} 57. Kh4 {[%clk 0:00:07]} 1-0


[Site "https://www.chess.com"]

[Event "Titled Tuesday Blitz July 26 Early 2022"]
[White "Odegov, Artem"]
[Black "Seo, Jung Min"]
[WhiteFideId "34183644"]
[BlackFideId "1734687"]
[WhiteElo "2286"]
[BlackElo "2414"]
[Result "0-1"]
[Round "03"]
[TimeControl "180+1"]
[Date "2022.07.26"]
[WhiteClock "0:00:02"]
[BlackClock "0:01:30"]

1. d4 {[%clk 0:02:56]}  e6 {[%clk 0:02:59]} 2. c4 {[%clk 0:02:57]}  b6 {[%clk 0:02:59]} 3. Nf3 {[%clk 0:02:57]}  Bb7 {[%clk 0:02:58]} 4. g3 {[%clk 0:02:58]}  Nf6 {[%clk 0:02:51]} 5. Bg2 {[%clk 0:02:58]}  Bb4+ {[%clk 0:02:51]} 6. Bd2 {[%clk 0:02:58]}  Be7 {[%clk 0:02:51]} 7. O-O {[%clk 0:02:58]}  O-O {[%clk 0:02:51]} 8. Bg5 {[%clk 0:02:58]}  Ne4 {[%clk 0:02:45]} 9. Bxe7 {[%clk 0:02:57]}  Qxe7 {[%clk 0:02:45]} 10. Nc3 {[%clk 0:02:57]}  Nxc3 {[%clk 0:02:45]} 11. bxc3 {[%clk 0:02:58]}  d6 {[%clk 0:02:43]} 12. Qc2 {[%clk 0:02:58]}  Nd7 {[%clk 0:02:41]} 13. Ng5 {[%clk 0:02:47]}  Qxg5 {[%clk 0:02:41]} 14. Bxb7 {[%clk 0:02:47]}  Rab8 {[%clk 0:02:41]} 15. Bg2 {[%clk 0:02:47]}  Qe7 {[%clk 0:02:36]} 16. f4 {[%clk 0:02:44]}  c5 {[%clk 0:02:34]} 17. e4 {[%clk 0:02:39]}  cxd4 {[%clk 0:02:28]} 18. cxd4 {[%clk 0:02:40]}  e5 {[%clk 0:02:28]} 19. Rad1 {[%clk 0:02:34]}  Rbc8 {[%clk 0:02:25]} 20. Kh1 {[%clk 0:02:30]}  Rc7 {[%clk 0:02:25]} 21. Bh3 {[%clk 0:02:01]}  Nf6 {[%clk 0:02:09]} 22. d5 {[%clk 0:01:13]}  b5 {[%clk 0:02:07]} 23. Qg2 {[%clk 0:00:42]}  Rxc4 {[%clk 0:02:06]} 24. Rde1 {[%clk 0:00:39]}  exf4 {[%clk 0:02:03]} 25. Rxf4 {[%clk 0:00:34]}  Nxd5 {[%clk 0:02:01]} 26. Rh4 {[%clk 0:00:28]}  Nf6 {[%clk 0:01:58]} 27. Qf3 {[%clk 0:00:19]}  d5 {[%clk 0:01:54]} 28. Bf5 {[%clk 0:00:09]}  g6 {[%clk 0:01:40]} 29. e5 {[%clk 0:00:03]}  Rxh4 {[%clk 0:01:38]} 30. gxh4 {[%clk 0:00:03]}  Ne4 {[%clk 0:01:33]} 31. Bxe4 {[%clk 0:00:02]}  Qxe5 {[%clk 0:01:30]} 32. Bxd5 {[%clk 0:00:02]}  Qxe1+ {[%clk 0:01:30]} 33. Kg2 {[%clk 0:00:02]}  Qxh4 {[%clk 0:01:30]} 34. Qf4 {[%clk 0:00:02]} 0-1


[Site "https://www.chess.com"]

[Event "Titled Tuesday Blitz July 26 Early 2022"]
[White "Przybylski, Wojciech"]
[Black "Aldokhin, Ivan"]
[WhiteFideId "1117599"]
[BlackFideId "24115720"]
[WhiteElo "2133"]
[BlackElo "2246"]
[Result "1-0"]
[Round "03"]
[TimeControl "180+1"]
[Date "2022.07.27"]
[WhiteClock "0:00:07"]
[BlackClock "0:00:07"]

1. d4 {[%clk 0:02:56]}  Nf6 {[%clk 0:02:59]} 2. c4 {[%clk 0:02:56]}  g6 {[%clk 0:03:00]} 3. Nc3 {[%clk 0:02:55]}  Bg7 {[%clk 0:03:00]} 4. g3 {[%clk 0:02:55]}  d6 {[%clk 0:03:01]} 5. Bg2 {[%clk 0:02:55]}  O-O {[%clk 0:03:02]} 6. e3 {[%clk 0:02:53]}  Nbd7 {[%clk 0:03:03]} 7. Nge2 {[%clk 0:02:53]}  e5 {[%clk 0:03:03]} 8. O-O {[%clk 0:02:53]}  c6 {[%clk 0:03:02]} 9. Rb1 {[%clk 0:02:52]}  Re8 {[%clk 0:02:55]} 10. b4 {[%clk 0:02:51]}  h5 {[%clk 0:02:49]} 11. b5 {[%clk 0:02:49]}  c5 {[%clk 0:02:08]} 12. dxc5 {[%clk 0:02:42]}  Nxc5 {[%clk 0:02:08]} 13. Ba3 {[%clk 0:02:30]}  Bf5 {[%clk 0:01:47]} 14. Rc1 {[%clk 0:02:20]}  Nd3 {[%clk 0:01:11]} 15. Ra1 {[%clk 0:02:19]}  Qa5 {[%clk 0:01:09]} 16. Qa4 {[%clk 0:02:12]}  Qc7 {[%clk 0:00:57]} 17. Rad1 {[%clk 0:01:57]}  e4 {[%clk 0:00:55]} 18. Nd4 {[%clk 0:01:55]}  Bg4 {[%clk 0:00:53]} 19. Rd2 {[%clk 0:01:54]}  Ne5 {[%clk 0:00:46]} 20. Nxe4 {[%clk 0:00:48]}  Nxe4 {[%clk 0:00:43]} 21. Bxe4 {[%clk 0:00:49]}  Qxc4 {[%clk 0:00:42]} 22. Qb3 {[%clk 0:00:44]}  d5 {[%clk 0:00:40]} 23. Bxd5 {[%clk 0:00:41]}  Qxb3 {[%clk 0:00:28]} 24. axb3 {[%clk 0:00:42]}  Rad8 {[%clk 0:00:26]} 25. Bxb7 {[%clk 0:00:39]}  Rb8 {[%clk 0:00:15]} 26. Bg2 {[%clk 0:00:33]}  h4 {[%clk 0:00:14]} 27. h3 {[%clk 0:00:32]}  Bc8 {[%clk 0:00:08]} 28. gxh4 {[%clk 0:00:31]}  Rb6 {[%clk 0:00:04]} 29. f4 {[%clk 0:00:30]}  Nd7 {[%clk 0:00:04]} 30. Kf2 {[%clk 0:00:27]}  Nf6 {[%clk 0:00:03]} 31. Rc2 {[%clk 0:00:21]}  Bb7 {[%clk 0:00:04]} 32. Bc6 {[%clk 0:00:20]}  Bxc6 {[%clk 0:00:03]} 33. bxc6 {[%clk 0:00:20]}  Nd5 {[%clk 0:00:02]} 34. Bc5 {[%clk 0:00:18]}  Ra6 {[%clk 0:00:01]} 35. Re1 {[%clk 0:00:16]}  Nf6 {[%clk 0:00:02]} 36. Kf3 {[%clk 0:00:12]}  Ne4 {[%clk 0:00:02]} 37. b4 {[%clk 0:00:11]}  f5 {[%clk 0:00:03]} 38. c7 {[%clk 0:00:07]}  Ra4 {[%clk 0:00:04]} 39. Nb5 {[%clk 0:00:06]}  Rc8 {[%clk 0:00:05]} 40. Rd1 {[%clk 0:00:06]}  Ra6 {[%clk 0:00:05]} 41. Rd8+ {[%clk 0:00:06]}  Kf7 {[%clk 0:00:05]} 42. Rxc8 {[%clk 0:00:06]}  Ra1 {[%clk 0:00:06]} 43. Nd6+ {[%clk 0:00:06]}  Ke6 {[%clk 0:00:05]} 44. Nxe4 {[%clk 0:00:06]}  fxe4+ {[%clk 0:00:05]} 45. Kxe4 {[%clk 0:00:07]}  Ra3 {[%clk 0:00:05]} 46. Rd8 {[%clk 0:00:06]}  Kf7 {[%clk 0:00:06]} 47. c8=Q {[%clk 0:00:07]}  Bf6 {[%clk 0:00:07]} 48. Qd7+ {[%clk 0:00:07]} 1-0


[Site "https://www.chess.com"]

[Event "Titled Tuesday Blitz July 26 Early 2022"]
[White "Raja Harshit"]
[Black "Ladan, Nicholas"]
[WhiteFideId "5089000"]
[BlackFideId "30918855"]
[WhiteElo "2338"]
[BlackElo "2167"]
[Result "1-0"]
[Round "03"]
[TimeControl "180+1"]
[Date "2022.07.27"]
[WhiteClock "0:00:14"]
[BlackClock "0:00:01"]

1. e4 {[%clk 0:03:00]}  e5 {[%clk 0:02:59]} 2. Nf3 {[%clk 0:02:56]}  Nc6 {[%clk 0:03:00]} 3. Bb5 {[%clk 0:02:52]}  a6 {[%clk 0:02:58]} 4. Ba4 {[%clk 0:02:52]}  g6 {[%clk 0:02:58]} 5. O-O {[%clk 0:02:51]}  Bg7 {[%clk 0:02:59]} 6. d4 {[%clk 0:02:51]}  exd4 {[%clk 0:02:58]} 7. c3 {[%clk 0:02:41]}  b5 {[%clk 0:02:58]} 8. Bb3 {[%clk 0:02:40]}  Na5 {[%clk 0:02:52]} 9. cxd4 {[%clk 0:02:28]}  Ne7 {[%clk 0:02:50]} 10. Bc2 {[%clk 0:02:19]}  O-O {[%clk 0:02:46]} 11. d5 {[%clk 0:02:19]}  d6 {[%clk 0:02:44]} 12. Bd2 {[%clk 0:02:19]}  c5 {[%clk 0:02:32]} 13. Bc3 {[%clk 0:02:10]}  Bg4 {[%clk 0:02:27]} 14. Bxg7 {[%clk 0:02:05]}  Kxg7 {[%clk 0:02:27]} 15. h3 {[%clk 0:02:04]}  Bxf3 {[%clk 0:02:22]} 16. Qxf3 {[%clk 0:02:05]}  Nc4 {[%clk 0:02:22]} 17. Qc3+ {[%clk 0:01:57]}  f6 {[%clk 0:02:19]} 18. b3 {[%clk 0:01:54]}  Ne5 {[%clk 0:02:15]} 19. f4 {[%clk 0:01:55]}  Nf7 {[%clk 0:02:15]} 20. Nd2 {[%clk 0:01:53]}  a5 {[%clk 0:02:00]} 21. a4 {[%clk 0:01:51]}  Qb6 {[%clk 0:01:51]} 22. axb5 {[%clk 0:01:50]}  c4+ {[%clk 0:01:43]} 23. Kh2 {[%clk 0:01:49]}  cxb3 {[%clk 0:01:43]} 24. Bxb3 {[%clk 0:01:38]}  Rfc8 {[%clk 0:01:40]} 25. Qd3 {[%clk 0:01:37]}  Qc5 {[%clk 0:01:33]} 26. Rfc1 {[%clk 0:01:32]}  Qf2 {[%clk 0:01:22]} 27. Nf3 {[%clk 0:01:22]}  Rxc1 {[%clk 0:01:18]} 28. Rxc1 {[%clk 0:01:22]}  a4 {[%clk 0:01:19]} 29. Rc2 {[%clk 0:01:07]}  Qb6 {[%clk 0:01:09]} 30. Ba2 {[%clk 0:01:07]}  a3 {[%clk 0:01:03]} 31. Nd4 {[%clk 0:01:07]}  Nd8 {[%clk 0:00:44]} 32. Nc6 {[%clk 0:01:00]}  Ng8 {[%clk 0:00:29]} 33. Nxd8 {[%clk 0:00:46]}  Rxd8 {[%clk 0:00:30]} 34. Qxa3 {[%clk 0:00:46]}  Qd4 {[%clk 0:00:27]} 35. Qf3 {[%clk 0:00:38]}  Rb8 {[%clk 0:00:22]} 36. Rc7+ {[%clk 0:00:37]}  Kh8 {[%clk 0:00:17]} 37. Bc4 {[%clk 0:00:37]}  Qb2 {[%clk 0:00:11]} 38. Bf1 {[%clk 0:00:34]}  Ra8 {[%clk 0:00:08]} 39. Qc3 {[%clk 0:00:32]}  Qf2 {[%clk 0:00:06]} 40. Qf3 {[%clk 0:00:29]}  Qd2 {[%clk 0:00:06]} 41. b6 {[%clk 0:00:28]}  Qb2 {[%clk 0:00:02]} 42. b7 {[%clk 0:00:28]}  Rb8 {[%clk 0:00:02]} 43. Ba6 {[%clk 0:00:26]}  Qb6 {[%clk 0:00:02]} 44. Rc8 {[%clk 0:00:26]}  Rxb7 {[%clk 0:00:02]} 45. Bxb7 {[%clk 0:00:25]}  Qxb7 {[%clk 0:00:03]} 46. Rc6 {[%clk 0:00:25]}  Qb4 {[%clk 0:00:02]} 47. Qe3 {[%clk 0:00:20]}  Ne7 {[%clk 0:00:02]} 48. Rc7 {[%clk 0:00:19]}  Ng8 {[%clk 0:00:02]} 49. Rc8 {[%clk 0:00:18]}  Qb7 {[%clk 0:00:01]} 50. Qc3 {[%clk 0:00:18]}  Qe7 {[%clk 0:00:01]} 51. Rc7 {[%clk 0:00:17]}  Qxe4 {[%clk 0:00:01]} 52. Qf3 {[%clk 0:00:17]}  Qf5 {[%clk 0:00:01]} 53. Rc6 {[%clk 0:00:17]}  g5 {[%clk 0:00:01]} 54. Rxd6 {[%clk 0:00:17]}  gxf4 {[%clk 0:00:02]} 55. Rd8 {[%clk 0:00:16]}  Qe5 {[%clk 0:00:02]} 56. d6 {[%clk 0:00:15]}  Kg7 {[%clk 0:00:02]} 57. Qg4+ {[%clk 0:00:15]}  Kf7 {[%clk 0:00:01]} 58. Qxg8# {[%clk 0:00:14]} 1-0


[Site "https://www.chess.com"]